bitfinex/quotes_SOLUSD_20220101
["timestamp","ask_amount","ask_price","bid_price","bid_amount"]
[1641054333860,9.378,174.1,174.02,16.9487]
[1641054334261,8.878,174.1,174.02,16.9487]
[1641054334861,9.378,174.1,174.02,16.9487]
[1641054335265,8.878,174.1,174.02,16.9487]
[1641054335462,9.378,174.1,174.02,16.9487]
[1641054335687,8.878,174.1,174.02,16.9487]
[1641054335867,9.378,174.1,174.02,16.9487]
[1641054336065,8.878,174.1,174.02,16.9487]
[1641054336466,9.378,174.1,174.02,16.9487]
[1641054337069,8.878,174.1,174.02,16.9487]
[1641054337366,9.378,174.1,174.02,16.9487]
[1641054337565,8.878,174.1,174.02,16.9487]
[1641054338165,9.378,174.1,174.02,16.9487]
[1641054338566,8.878,174.1,174.02,16.9487]
[1641054339167,9.378,174.1,174.02,16.9487]
[1641054339466,8.878,174.1,174.02,16.9487]
[1641054339868,9.378,174.1,174.02,16.9487]
[1641054340269,8.878,174.1,174.02,16.9487]
[1641054340874,9.378,174.1,174.02,16.9487]
[1641054341072,8.878,174.1,174.02,16.9487]
[1641054342276,9.378,174.1,174.02,16.9487]
[1641054344078,9.378,174.1,174.02,8.6187]
[1641054344276,8.878,174.1,174.02,8.6187]
[1641054344478,8.878,174.1,174.02,16.9487]
[1641054344678,9.378,174.1,174.02,8.6187]
[1641054344878,8.878,174.1,174.02,8.6187]
[1641054345278,8.878,174.1,174.02,16.9487]
[1641054345478,9.378,174.1,174.02,16.9487]
[1641054345879,8.878,174.1,174.02,16.9487]
[1641054346384,9.378,174.1,174.02,16.9487]
[1641054346779,8.878,174.1,174.02,16.9487]
[1641054348283,9.378,174.1,174.02,16.9487]
[1641054348583,8.618,174.1,174.02,16.9487]
[1641054349284,9.118,174.1,174.02,16.9487]
[1641054349885,9.378,174.1,174.02,16.9487]
[1641054350182,8.878,174.1,174.02,16.9487]
[1641054350807,9.378,174.1,174.02,16.9487]
[1641054351208,8.878,174.1,174.02,16.9487]
[1641054352409,9.378,174.1,174.02,16.9487]
[1641054354112,9.378,174.1,174.02,8.6187]
[1641054354314,9.378,174.1,174.02,16.9487]
[1641054354713,155.4987,174.14,174.02,16.9487]
[1641054354914,1.4953489,174.16,174.03,1.42669368]
[1641054355113,1.4953489,174.16,174.09,8.6147]
[1641054355314,80.9934,174.18,174.1,8.33]
[1641054356116,80.9934,174.18,174.13,8.6131]
[1641054356316,73.0038,174.2,174.13,8.6131]
[1641054356520,73.2638,174.2,174.13,8.6131]
[1641054356715,73.7638,174.2,174.13,8.6131]
[1641054358019,73.5038,174.2,174.13,8.6131]
[1641054359430,73.7638,174.2,174.13,8.6131]
[1641054360033,73.7638,174.2,174.13,16.9431]
[1641054362561,73.2638,174.2,174.13,16.9431]
[1641054368472,73.2638,174.2,174.13,8.6131]
[1641054370777,81.8774,174.2,174.13,8.6131]
[1641054370978,82.3774,174.2,174.13,8.6131]
[1641054371578,81.8774,174.2,174.13,8.6131]
[1641054371779,82.3774,174.2,174.12,16.9438]
[1641054371985,82.1174,174.2,174.12,16.9438]
[1641054372182,81.6174,174.2,174.12,8.6138]
[1641054372380,81.6174,174.2,174.12,16.9438]
[1641054372680,81.6174,174.2,174.12,8.6138]
[1641054372881,81.6174,174.2,174.12,16.9438]
[1641054373083,81.6174,174.2,174.12,8.6138]
[1641054373323,81.6174,174.2,174.12,16.9438]
[1641054373513,81.8774,174.2,174.12,16.9438]
[1641054374914,73.2638,174.2,174.12,16.9438]
[1641054376819,2.509,174.22,174.12,16.9438]
[1641054377020,1.2539,174.22,174.12,17.2038]
[1641054377222,1.4953489,174.25,174.12,18.63049368]
[1641054377420,1.4953489,174.25,174.19,8.6098]
[1641054377821,1.3494,174.28,174.19,8.6098]
[1641054378022,8.6101,174.27,174.19,8.6098]
[1641054378423,9.1101,174.27,174.19,8.6098]
[1641054378622,9.1101,174.27,174.18,9.8445]
[1641054379433,9.3701,174.27,174.18,9.8445]
[1641054379825,9.1101,174.27,174.18,9.8445]
[1641054380825,0.5,174.27,174.19,8.33]
[1641054381022,0.5,174.27,174.19,16.9401]
[1641054381224,0.76,174.28,174.19,16.9401]
[1641054381423,0.26,174.28,174.19,16.9401]
[1641054381623,1.5786,174.29,174.19,16.9401]
[1641054381831,2.0786,174.29,174.19,16.9401]
[1641054382624,10.6881,174.29,174.19,16.9401]
[1641054384424,10.1881,174.29,174.19,16.9401]
[1641054385026,10.6881,174.29,174.19,16.9401]
[1641054385223,10.6881,174.29,174.2,1.3105]
[1641054385627,10.6881,174.29,174.2,9.92]
[1641054385824,10.1881,174.29,174.2,9.92]
[1641054386826,10.6881,174.29,174.2,9.92]
[1641054388829,10.4281,174.29,174.2,9.92]
[1641054389827,1.8186,174.29,174.2,9.92]
[1641054390029,1.3186,174.29,174.2,9.92]
[1641054390230,1.5786,174.29,174.2,9.92]
[1641054391530,1.3186,174.29,174.2,9.92]
[1641054392930,1.5786,174.29,174.2,9.92]
[1641054394531,1.5786,174.29,174.2,10.18]
[1641054394732,1.3186,174.29,174.21,8.33]
[1641054394931,76.9049,174.31,174.21,8.33]
[1641054395133,1.2825,174.33,174.22,1.42669368]
[1641054395337,1.2825,174.33,174.23,8.33]
[1641054395633,1.7825,174.33,174.23,8.59]
[1641054395834,1.7825,174.33,174.23,8.33]
[1641054396035,1.7825,174.33,174.24,8.6073]
[1641054396235,2.0425,174.33,174.24,8.6073]
[1641054396438,2.0425,174.33,174.23,8.33]
[1641054397235,10.6502,174.33,174.23,16.9381]
[1641054398237,10.3902,174.33,174.23,16.9381]
[1641054398837,10.3902,174.33,174.23,17.1981]
[1641054398838,1.7825,174.33,174.23,17.1981]
[1641054399037,1.2825,174.33,174.25,8.607]
[1641054399463,1.7825,174.33,174.25,8.607]
[1641054399635,2.0425,174.33,174.25,8.607]
[1641054400637,1.5425,174.33,174.25,8.607]
[1641054401036,1.2825,174.33,174.25,8.607]
[1641054401238,1.7825,174.33,174.25,8.607]
[1641054401842,0.032869,174.35,174.25,8.607]
[1641054402041,0.032869,174.35,174.26,8.33]
[1641054402242,0.032869,174.35,174.3,8.6046]
[1641054402440,0.032869,174.35,174.31,8.33]
[1641054402842,0.032869,174.35,174.31,8.59]
[1641054403244,0.032869,174.35,174.33,8.6025]
[1641054403443,0.032869,174.35,174.34,8.83197092]
[1641054403945,0.032869,174.35,174.34,9.09197092]
[1641054404647,0.032869,174.35,174.34,17.69377092]
[1641054406256,0.032869,174.35,174.34,17.43377092]
[1641054406655,0.032869,174.35,174.34,8.83197092]
[1641054406854,5.59332708,174.35,174.34,8.33]
[1641054407069,0.032869,174.35,174.34,8.33]
[1641054408272,5.59332708,174.35,174.29,8.33]
[1641054408470,33.44259415,174.35,174.28,8.33]
[1641054408872,6.35332708,174.35,174.28,8.33]
[1641054409070,5.85332708,174.35,174.28,8.33]
[1641054411673,5.85332708,174.35,174.28,16.9354]
[1641054411872,5.85332708,174.35,174.28,8.33]
[1641054415577,5.85332708,174.35,174.28,16.9356]
[1641054415780,0.292869,174.35,174.28,16.9356]
[1641054415982,0.032869,174.35,174.28,16.9356]
[1641054416681,0.032869,174.35,174.3,8.6044]
[1641054416880,0.032869,174.35,174.3,16.9344]
[1641054418483,0.032869,174.35,174.3,8.33]
[1641054419983,0.032869,174.35,174.3,16.9347]
[1641054420283,0.032869,174.35,174.3,17.1947]
[1641054420485,0.032869,174.35,174.31,1.235]
[1641054420683,0.032869,174.35,174.31,9.565]
[1641054420886,0.032869,174.35,174.31,9.825]
[1641054421088,0.032869,174.35,174.31,9.565]
[1641054421784,0.032869,174.35,174.31,8.33]
[1641054424986,0.032869,174.35,174.32,1.2476]
[1641054425387,0.032869,174.35,174.33,0.50197092]
[1641054428795,0.032869,174.35,174.33,9.10517092]
[1641054429797,0.032869,174.35,174.33,19.1218646]
[1641054430196,0.032869,174.35,174.33,18.8618646]
[1641054430594,0.032869,174.35,174.33,17.43517092]
[1641054430794,0.032869,174.35,174.34,1.3234]
[1641054430994,0.032869,174.35,174.34,18.2555]
[1641054434798,0.032869,174.35,174.34,27.09819368]
[1641054435202,0.032869,174.35,174.34,25.6715]
[1641054436100,0.032869,174.35,174.34,27.09819368]
[1641054436905,10.732869,174.47,174.38,8.6006]
[1641054437501,10.992869,174.47,174.34,8.59]
[1641054437703,10.7123,174.47,174.35,1.2879]
[1641054437903,10.7123,174.47,174.35,9.6179]
[1641054438702,10.7123,174.47,174.36,8.6012]
[1641054439602,12.13899368,174.47,174.36,8.6012]
[1641054440004,12.13899368,174.47,174.37,1.3351]
[1641054440404,10.7123,174.47,174.37,1.3351]
[1641054440740,10.7123,174.47,174.37,9.9363]
[1641054442313,12.13899368,174.47,174.37,1.3351]
[1641054448413,11.87899368,174.47,174.37,1.3351]
[1641054448612,10.4523,174.47,174.37,9.9361]
[1641054450115,10.7123,174.47,174.37,9.9361]
[1641054450515,10.4523,174.47,174.37,10.1961]
[1641054450715,1.8513,174.47,174.37,18.5261]
[1641054451919,2.1113,174.47,174.37,18.5261]
[1641054452115,1.8513,174.47,174.37,18.5261]
[1641054453417,2.1113,174.47,174.37,18.5261]
[1641054455219,0.5,174.47,174.37,18.5261]
[1641054455421,73.018,174.48,174.37,18.5261]
[1641054455619,1.3436,174.47,174.37,18.5261]
[1641054455821,73.018,174.48,174.37,18.5261]
[1641054456020,0.5,174.47,174.37,18.5261]
[1641054456219,1.3222,174.47,174.37,18.5261]
[1641054456421,1.8222,174.47,174.37,18.5261]
[1641054456621,2.0822,174.47,174.37,18.5261]
[1641054459628,0.76,174.47,174.37,18.5261]
[1641054459825,0.76,174.47,174.38,1.42669368]
[1641054460025,73.278,174.48,174.41,8.5988]
[1641054461228,72.778,174.48,174.41,8.5988]
[1641054462433,72.518,174.48,174.41,8.5988]
[1641054463133,72.518,174.48,174.4,9.8799]
[1641054463363,73.018,174.48,174.4,18.2099]
[1641054463563,72.778,174.48,174.4,18.2099]
[1641054464264,73.278,174.48,174.4,18.2099]
[1641054464667,81.8777,174.48,174.4,18.2099]
[1641054465971,81.3777,174.48,174.4,18.2099]
[1641054466371,81.8777,174.48,174.4,1.2802]
[1641054467177,83.2177,174.48,174.4,1.2802]
[1641054474681,82.9577,174.48,174.4,1.2802]
[1641054476082,83.2177,174.48,174.4,1.2802]
[1641054476785,83.2177,174.48,174.38,8.6007]
[1641054476984,83.2177,174.48,174.33,18.47940028]
[1641054477183,83.2177,174.48,174.34,1.3516]
[1641054477687,91.5477,174.48,174.34,1.3516]
[1641054477885,92.97439368,174.48,174.34,1.3516]
[1641054478484,92.97439368,174.48,174.32,8.6039]
[1641054478884,92.97439368,174.48,174.33,1.3379]
[1641054479886,92.97439368,174.48,174.33,9.9412]
[1641054480188,91.5477,174.48,174.33,9.9412]
[1641054480786,91.2877,174.48,174.33,9.9412]
[1641054480987,91.2877,174.48,174.33,10.2012]
[1641054481985,91.5477,174.48,174.33,10.2012]
[1641054482386,91.2877,174.48,174.33,10.2012]
[1641054483486,91.5477,174.48,174.33,10.2012]
[1641054484887,91.5477,174.48,174.33,9.9412]
[1641054485690,92.97439368,174.48,174.33,9.9412]
[1641054486088,92.97439368,174.48,174.33,10.2012]
[1641054486488,92.97439368,174.48,174.33,1.5979]
[1641054486889,92.97439368,174.48,174.33,1.3379]
[1641054488394,91.2877,174.48,174.33,9.9411]
[1641054488591,91.2877,174.48,174.33,10.2011]
[1641054489592,91.5477,174.48,174.33,10.2011]
[1641054489993,92.97439368,174.48,174.33,10.2011]
[1641054490192,92.97439368,174.48,174.33,9.9411]
[1641054490792,94.46974258,174.48,174.33,9.9411]
[1641054491495,94.46974258,174.48,174.33,1.3379]
[1641054491696,100.45802074,174.48,174.33,1.3379]
[1641054491896,100.45802074,174.48,174.29,82.6598]
[1641054492097,1.4953489,174.47,174.3,1.2802]
[1641054492298,8.6054,174.38,174.3,1.2802]
[1641054492498,36.51884585,174.38,174.3,1.2802]
[1641054492699,37.01884585,174.38,174.3,1.2802]
[1641054494397,8.8654,174.38,174.3,1.2802]
[1641054495199,9.3654,174.38,174.3,9.8849]
[1641054503333,0.76,174.38,174.3,9.8849]
[1641054503530,0.5,174.38,174.3,9.8849]
[1641054503732,9.3633,174.4,174.3,9.8849]
[1641054505532,9.3633,174.4,174.3,18.2149]
[1641054507136,8.8633,174.4,174.3,18.2149]
[1641054507937,8.8633,174.4,174.3,19.64159368]
[1641054510945,8.6048,174.36,174.3,19.64159368]
[1641054511343,0.26,174.36,174.3,19.64159368]
[1641054511940,30.2799,174.41,174.3,19.64159368]
[1641054512741,8.6043,174.37,174.3,19.64159368]
[1641054513142,55.14432995,174.44,174.3,19.64159368]
[1641054513343,74.6332,174.43,174.3,19.90159368]
[1641054514544,74.8932,174.43,174.3,19.90159368]
[1641054515768,8.6024,174.41,174.3,19.90159368]
[1641054516145,8.8624,174.41,174.3,19.90159368]
[1641054517545,8.8624,174.41,174.3,19.64159368]
[1641054518950,8.8624,174.41,174.3,9.8849]
[1641054519149,8.8624,174.41,174.3,1.2802]
[1641054519449,10.28909368,174.41,174.3,1.2802]
[1641054519649,10.28909368,174.41,174.28,1.3221]
[1641054519848,8.6069,174.34,174.28,1.3221]
[1641054520050,8.8669,174.34,174.26,1.3139]
[1641054522753,8.6069,174.34,174.26,9.9203]
[1641054523053,8.6069,174.34,174.26,10.1803]
[1641054524079,8.8669,174.34,174.26,10.1803]
[1641054527081,8.8669,174.34,174.26,18.5103]
[1641054527381,8.8669,174.34,174.26,18.2503]
[1641054527780,0.26,174.34,174.26,18.2503]
[1641054527981,76.9516,174.38,174.26,18.2503]
[1641054528380,76.6916,174.38,174.26,18.2503]
[1641054528580,2.8051489,174.44,174.26,28.65970028]
[1641054528780,78.5502,174.42,174.26,30.08639396]
[1641054529183,78.5502,174.42,174.26,35.80542497]
[1641054529681,8.6033,174.4,174.26,35.80542497]
[1641054530084,8.8633,174.4,174.26,35.80542497]
[1641054530987,8.8633,174.4,174.26,139.93542497]
[1641054531284,8.8633,174.4,174.26,138.50873129]
[1641054534590,0.26,174.4,174.26,139.93542497]
[1641054534989,8.8624,174.41,174.26,139.93542497]
[1641054536494,8.8624,174.41,174.26,138.50873129]
[1641054537294,153.1225,174.42,174.26,139.93542497]
[1641054537493,151.7786,174.42,174.26,139.93542497]
[1641054538694,160.3806,174.42,174.26,139.93542497]
[1641054539096,160.6406,174.42,174.26,139.93542497]
[1641054539497,160.6406,174.42,174.26,138.50873129]
[1641054540199,160.6406,174.42,174.34,8.6022]
[1641054540499,160.3806,174.42,174.35,8.33]
[1641054541799,160.6406,174.42,174.35,9.6064]
[1641054542008,74.5723,174.42,174.35,18.468]
[1641054542999,1.226,174.49,174.35,18.468]
[1641054543198,76.899,174.49,174.35,18.468]
[1641054543808,85.4981,174.49,174.35,18.468]
[1641054544003,76.899,174.49,174.35,24.497]
[1641054544403,77.7738,174.5,174.35,24.497]
[1641054544704,164.4845,174.52,174.37,104.13]
[1641054544906,92.9,174.52,174.44,8.5963]
[1641054545101,92.9,174.52,174.44,17.1863]
[1641054546103,92.9,174.52,174.44,23.9903]
[1641054546303,87.4,174.52,174.44,23.9903]
[1641054546503,0.08121775,174.53,174.44,23.9903]
[1641054547503,0.08121775,174.53,174.44,17.1863]
[1641054547903,0.08121775,174.53,174.45,1.3178]
[1641054548104,0.08121775,174.53,174.47,8.5951]
[1641054548504,0.08121775,174.53,174.47,8.8551]
[1641054548805,0.08121775,174.53,174.48,9.75669368]
[1641054549006,0.08121775,174.53,174.48,8.59]
[1641054549405,0.08121775,174.53,174.48,8.33]
[1641054552440,0.08121775,174.53,174.48,9.75669368]
[1641054552635,0.08121775,174.53,174.48,8.33]
[1641054552834,0.08121775,174.53,174.45,1.42669368]
[1641054553034,0.08121775,174.53,174.43,8.33]
[1641054553435,8.67901775,174.53,174.43,8.33]
[1641054553635,40.53273313,174.53,174.43,8.33]
[1641054553836,40.79273313,174.53,174.43,8.33]
[1641054554334,40.79273313,174.53,174.39,9.6568]
[1641054555436,40.79273313,174.53,174.39,18.5161]
[1641054555735,8.93901775,174.53,174.39,18.5161]
[1641054556235,8.67901775,174.53,174.39,18.5161]
[1641054556435,8.67901775,174.53,174.39,19.94279368]
[1641054557234,1.2936,174.52,174.39,19.94279368]
[1641054557435,9.8919,174.52,174.39,19.94279368]
[1641054558535,10.1519,174.52,174.39,19.94279368]
[1641054558935,0.08121775,174.53,174.39,30.09219396]
[1641054559135,0.08121775,174.53,174.39,134.22219396]
[1641054559335,0.08121775,174.53,174.39,140.80619396]
[1641054559536,0.08121775,174.53,174.41,104.13]
[1641054559736,0.08121775,174.53,174.47,8.5935]
[1641054559937,0.08121775,174.53,174.48,8.33]
[1641054560338,0.08121775,174.53,174.48,8.59]
[1641054562535,0.08121775,174.53,174.48,17.1847]
[1641054562738,0.08121775,174.53,174.48,8.59]
[1641054564637,0.08121775,174.53,174.48,17.1849]
[1641054567745,0.08121775,174.53,174.5,8.5938]
[1641054567943,0.08121775,174.53,174.51,0.50197092]
[1641054568144,43.56045808,174.52,174.5,8.5938]
[1641054568345,43.56045808,174.52,174.48,8.33]
[1641054568648,5.56045808,174.52,174.48,8.33]
[1641054568844,2.53022904,174.52,174.48,16.9249]
[1641054569045,0.08121775,174.53,174.48,16.9249]
[1641054569645,0.08121775,174.53,174.48,17.1849]
[1641054570149,0.08121775,174.53,174.48,18.61159368]
[1641054574552,0.08121775,174.53,174.51,8.5929]
[1641054574754,0.08121775,174.53,174.52,0.50197092]
[1641054575356,0.08121775,174.53,174.52,1.9286646]
[1641054575552,0.08121775,174.53,174.52,2.1886646]
[1641054576954,0.08121775,174.53,174.52,1.9286646]
[1641054578355,0.08121775,174.53,174.52,2.1886646]
[1641054579255,0.08121775,174.53,174.52,1.9286646]
[1641054580656,0.08121775,174.53,174.52,2.1886646]
[1641054581160,0.08121775,174.53,174.52,10.5186646]
[1641054584463,0.08121775,174.53,174.52,10.2586646]
[1641054584663,0.08121775,174.53,174.52,8.83197092]
[1641054586564,0.08121775,174.53,174.52,0.50197092]
[1641054590366,35.64167583,174.53,174.5,8.5943]
[1641054590569,5.64167583,174.53,174.5,8.5943]
[1641054590790,0.08121775,174.53,174.51,0.50197092]
[1641054592791,5.56045808,174.52,174.47,8.5961]
[1641054592990,5.56045808,174.52,174.39,112.6491]
[1641054592991,5.82045808,174.52,174.41,8.33]
[1641054593191,6.32045808,174.52,174.41,8.33]
[1641054593994,14.41825808,174.52,174.44,8.5972]
[1641054594195,14.41825808,174.52,174.41,8.33]
[1641054594395,14.41825808,174.52,174.42,1.2374]
[1641054594595,5.82045808,174.52,174.43,8.33]
[1641054594994,5.82045808,174.52,174.43,8.59]
[1641054595898,5.82045808,174.52,174.46,8.5966]
[1641054596595,5.82045808,174.52,174.46,8.8566]
[1641054596796,2.79022904,174.52,174.46,8.8566]
[1641054596999,0.26,174.52,174.46,8.8566]
[1641054597601,8.93781775,174.53,174.46,8.8566]
[1641054597797,8.93781775,174.53,174.46,8.5966]
[1641054598200,0.34121775,174.53,174.46,8.5966]
[1641054598403,0.08121775,174.53,174.46,8.5966]
[1641054599003,0.08121775,174.53,174.46,8.8566]
[1641054601803,0.08121775,174.53,174.46,17.1866]
[1641054605710,0.08121775,174.53,174.46,16.9266]
[1641054607112,0.08121775,174.53,174.46,17.1866]
[1641054610117,0.08121775,174.53,174.47,1.358]
[1641054610314,0.08121775,174.53,174.5,8.5932]
[1641054610516,0.08121775,174.53,174.51,8.83197092]
[1641054610718,5.56045808,174.52,174.51,6.83]
[1641054610918,5.56045808,174.52,174.51,7.09]
[1641054610919,2.53022904,174.52,174.51,7.09]
[1641054611118,0.08121775,174.53,174.51,7.09]
[1641054611721,0.08121775,174.53,174.51,15.6828]
[1641054611919,0.08121775,174.53,174.52,0.50197092]
[1641054613721,0.08121775,174.53,174.52,9.09497092]
[1641054613923,0.08121775,174.53,174.52,9.35497092]
[1641054615725,0.08121775,174.53,174.52,10.61277092]
[1641054621555,0.08121775,174.53,174.52,10.63277092]
[1641054621959,0.08121775,174.53,174.52,9.37497092]
[1641054623159,0.08121775,174.53,174.52,8.873]
[1641054623360,32.64167583,174.53,174.52,8.873]
[1641054623563,2.61144679,174.53,174.52,8.873]
[1641054623761,2.61144679,174.53,174.52,8.613]
[1641054623961,0.08121775,174.53,174.52,8.613]
[1641054624565,31.64167583,174.53,174.52,8.613]
[1641054624764,5.64167583,174.53,174.52,8.613]
[1641054625262,5.64167583,174.53,174.52,0.02]
[1641054625463,5.90167583,174.53,174.52,0.02]
[1641054627965,38.49797583,174.53,174.52,0.02]
[1641054628566,38.49797583,174.53,174.46,8.33]
[1641054629570,38.49797583,174.53,174.47,8.5963]
[1641054631973,38.49797583,174.53,174.46,16.9267]
[1641054633373,38.49797583,174.53,174.46,8.5967]
[1641054633576,38.49797583,174.53,174.44,8.5974]
[1641054633975,38.99797583,174.53,174.44,8.5974]
[1641054634374,14.49797583,174.53,174.44,8.5974]
[1641054634574,14.99797583,174.53,174.44,8.5974]
[1641054634777,14.99797583,174.53,174.43,16.9281]
[1641054637504,14.49797583,174.53,174.43,16.9281]
[1641054637704,14.99797583,174.53,174.43,16.9281]
[1641054647914,14.73797583,174.53,174.43,16.9281]
[1641054648114,14.23797583,174.53,174.43,16.9281]
[1641054648320,5.64167583,174.53,174.43,17.1881]
[1641054648522,5.64167583,174.53,174.43,25.38779368]
[1641054648815,5.64167583,174.53,174.43,35.53719396]
[1641054649114,5.64167583,174.53,174.44,1.2695]
[1641054649315,14.73837583,174.53,174.43,8.33]
[1641054649716,14.99837583,174.53,174.41,1.3354]
[1641054650116,14.99837583,174.53,174.43,8.5977]
[1641054650319,16.24567583,174.53,174.43,8.5977]
[1641054651716,16.24567583,174.53,174.41,1.3354]
[1641054651717,16.24567583,174.53,174.41,9.9342]
[1641054652929,26.00236951,174.53,174.36,8.6012]
[1641054653119,26.00236951,174.53,174.32,8.33]
[1641054653120,26.00236951,174.53,174.32,1.2485]
[1641054653320,32.54163595,174.53,174.32,1.2485]
[1641054653721,41.46605326,174.53,174.32,1.2485]
[1641054653919,41.46605326,174.53,174.32,9.8516]
[1641054653920,8.6031,174.41,174.32,9.8516]
[1641054654219,8.8631,174.41,174.32,9.8516]
[1641054654419,9.3631,174.41,174.32,9.8516]
[1641054654821,9.3631,174.41,174.32,8.6031]
[1641054655222,8.8631,174.41,174.32,8.6031]
[1641054656823,9.3631,174.41,174.32,8.6031]
[1641054657422,9.1031,174.41,174.32,8.6031]
[1641054657622,8.6031,174.41,174.32,8.6031]
[1641054657823,9.1031,174.41,174.32,8.6031]
[1641054658026,8.6031,174.41,174.32,8.6031]
[1641054658823,8.8631,174.41,174.32,8.6031]
[1641054660827,0.26,174.41,174.32,8.6031]
[1641054661026,8.8622,174.42,174.32,8.6031]
[1641054661226,8.6022,174.42,174.32,8.8631]
[1641054661427,151.3691,174.45,174.32,17.1931]
[1641054661827,151.8691,174.45,174.32,17.1931]
[1641054662026,160.4698,174.45,174.32,17.1931]
[1641054662227,84.787,174.45,174.33,1.2256]
[1641054662427,76.1863,174.45,174.39,8.6]
[1641054662628,23.70744782,174.51,174.39,8.6]
[1641054662629,25.01444782,174.51,174.39,8.6]
[1641054662829,0.5,174.5,174.39,8.6]
[1641054663429,101.73984782,174.51,174.36,1.3364]
[1641054663628,8.6006,174.46,174.38,8.6006]
[1641054664027,9.3606,174.46,174.38,8.6006]
[1641054665031,9.3606,174.46,174.37,8.6011]
[1641054665630,8.8606,174.46,174.37,8.6011]
[1641054666531,9.3606,174.46,174.37,8.6011]
[1641054666730,9.1006,174.46,174.37,8.6011]
[1641054666929,8.6006,174.46,174.37,8.6011]
[1641054668133,8.8606,174.46,174.37,8.6011]
[1641054668339,9.3606,174.46,174.37,8.6011]
[1641054668635,8.8606,174.46,174.37,8.6011]
[1641054670461,9.3606,174.46,174.37,8.6011]
[1641054670667,9.3606,174.46,174.36,1.3364]
[1641054671561,8.8606,174.46,174.36,1.3364]
[1641054671761,9.3606,174.46,174.36,1.3364]
[1641054671962,10.6866,174.46,174.36,1.3364]
[1641054672161,10.6866,174.46,174.36,9.9381]
[1641054672360,10.1866,174.46,174.36,9.9381]
[1641054677768,10.1866,174.46,174.36,10.1981]
[1641054678569,10.1866,174.46,174.36,18.5281]
[1641054678970,0.26,174.46,174.36,18.5281]
[1641054679371,8.8597,174.47,174.36,18.5281]
[1641054680371,8.5997,174.47,174.36,18.5281]
[1641054681574,0.26,174.47,174.36,18.5281]
[1641054681974,8.8592,174.48,174.36,18.5281]
[1641054682574,8.8592,174.48,174.36,18.2681]
[1641054682974,9.3592,174.48,174.36,18.2681]
[1641054683876,9.3592,174.48,174.36,18.5281]
[1641054684079,8.8592,174.48,174.36,18.5281]
[1641054687281,9.3592,174.48,174.36,18.2681]
[1641054687479,8.8592,174.48,174.36,18.2681]
[1641054688581,8.8592,174.48,174.36,18.5281]
[1641054688978,9.3592,174.48,174.36,18.5281]
[1641054689180,8.8592,174.48,174.36,18.5281]
[1641054689882,9.3592,174.48,174.36,18.5281]
[1641054690083,8.8592,174.48,174.36,18.5281]
[1641054690479,9.3592,174.48,174.36,18.5281]
[1641054691882,8.8592,174.48,174.36,18.5281]
[1641054693783,9.3592,174.48,174.36,18.5281]
[1641054694383,8.8592,174.48,174.36,18.5281]
[1641054694583,8.5992,174.48,174.36,18.5281]
[1641054694982,8.5992,174.48,174.36,18.2681]
[1641054695185,9.0992,174.48,174.36,18.2681]
[1641054696009,8.8592,174.48,174.36,18.2681]
[1641054696211,8.5992,174.48,174.36,18.2681]
[1641054696412,8.5992,174.48,174.36,18.5281]
[1641054696612,8.5992,174.48,174.36,18.2681]
[1641054696811,9.0992,174.48,174.36,18.2681]
[1641054697412,8.5992,174.48,174.36,18.2681]
[1641054697613,8.8592,174.48,174.36,18.5281]
[1641054698220,8.8592,174.48,174.36,18.2681]
[1641054698613,9.3592,174.48,174.36,18.2681]
[1641054699116,8.6001,174.46,174.36,18.5281]
[1641054699515,0.26,174.46,174.36,18.5281]